{"text_format":"2","workbook":"xlsx","n_sheets":1,"sheets":["Hoja 1"],"not_rendered":{"charts":0,"images":0,"macros":0,"external_links":0,"defined_names":0,"comments":1,"pivot_tables":0},"unopened":[],"bounds":{"document_bytes":16777216,"sheet_cells":100000,"run_cost":"one","rows_first":2000,"rows_last":500,"rows_between":2000,"halvings":0,"cell_chars":16384,"cell_head_chars":4096},"cells_cut":0,"cells_raw":0,"read":"whole","date_system":"1900"}

{"sheet":"Hoja 1","index":0,"n_rows":113,"n_cols":33,"rows_kept":113,"cut":false,"hidden":false,"merged":[[112,6,112,7]]}
[{"$nulls":12},"Sergio Ramírez","Alma Guillermoprieto","Salvador Canjura","Darío Jaramillo","Leila Guerriero","Miguel Huezo Mixco","Rafael Lara-Martínez","Jorgelina Cerritos","Jacinta Escudos","Vanessa Núñez Handal","David Escobar Galindo","Jon Lee Anderson","Róger Lindo","Pablo Raphael","Claudia Hernández","Mauricio Orellana Suárez","Elena Salamanca","Horacio Castellanos Moya","Mario Jursich Durán","Héctor Feliciano","Esther Vargas"]
["No. ","Título del libro","Autor del libro","Nacionalidad del Autor","Año del libro","De venta La Casita","De venta La Ceiba","De venta La UCA","De venta Samborns","De venta Online","Hay ePub","En Biblioteca UCA"]
[1,"El Héroe Discreto","Mario Vargas Llosa","Perú",2013,1,1,1,1,null,null,null,1,null,null,1,{"$nulls":16},1]
[2,"Adiós libros míos","Kenzaburo Oé","Japón",2012,{"$nulls":7},1]
[3,"En torno a las excentricidades del Cardenal Pirelli","Ronald Firbank ","Inglaterra",1926,{"$nulls":7},1]
[4,"Fado Alejandrino","Antonio Lobo Antunes","Portugal",1983,{"$nulls":4},1,null,null,1]
[5,"Las aventuras del valeroso soldado Scwejk","Jaroslav Hašek ","República Checa",1923,{"$nulls":7},1]
[6,"Canción de tumba","Julián Herbert","México",2011,{"$nulls":8},1]
[7,"Los Ingrávidos","Valeria Luiselli","México",2011,{"$nulls":8},1]
[8,"Los Ejércitos","Evelio Rosero","Colombia",2006,{"$nulls":8},1]
[9,"1493","Charles Mann","Estados Unidos",2011,{"$nulls":8},1]
[10,"El Zorro Azul ","Sjón","Islandia",2003,{"$nulls":8},1]
[11,"Desde La Boca De La Ballena","Sjón","Islandia",2005,{"$nulls":8},1]
[12,"Y La Musa Susurrante","Sjón","Islandia",2008,{"$nulls":8},1]
[13,"Memorias Postumas De Bras Cubas","Machado de Assis","Brasil",1881,{"$nulls":6},1,null,1]
[14,"Middlesex","Jeffrey Eugenides","Estados Unidos",2002,{"$nulls":9},1]
[15,"Sinceramente suyo, Shúrik","Liudmila Ulítskaya","Rusia",2003,{"$nulls":9},1]
[16,"Longitud","Dava Sobel","Estados Unidos",1995,{"$nulls":6},1,null,null,1]
[17,"En Tiempos de Luz Menguante","Eugen Ruge","Alemania",2013,{"$nulls":9},1]
[18,"HHhH","Laurent Binet ","Francia",2010,1,{"$nulls":8},1]
[19,"Este Caballero a Caballo","Eduardo Peláez Vallejo","Colombia",2013,{"$nulls":10},1]
[20,"El Camello","Lord Berners","Inglaterra",1936,{"$nulls":10},1]
[21,"Días Contados: Crónicas sobre la eternidad de este presente","Fabrizio Mejía Madrid","México",2012,{"$nulls":10},1]
[22,"Palabras Cruzadas","Elena Poniatowska","México",1961,{"$nulls":10},1]
[23,"La Reina de Corazones ","Wilkie Collins","Inglaterra",1859,{"$nulls":10},1]
[24,"Jernigan","David Gates","Estados Unidos",1991,{"$nulls":11},1]
[25,"Diario De Una Ama de Casa Desquiciada","Sue Kaufman","Estados Unidos",1967,{"$nulls":11},1]
[26,"Crónicas de Nueva York","Maeve Brennan","Estados Unidos",1969,{"$nulls":11},1]
[27,"Yoga Para Los Que Pasan Del Yoga","Geoff Dyer","Inglaterra",2004,{"$nulls":11},1]
[28,"Ifigenia En Forrest Hill","Janet Malcom","Estados Unidos",1934,{"$nulls":11},1]
[29,"El Tiempo Principia En Xibalbá","Luis de Lión","Guatemala",1985,{"$nulls":12},1]
[30,"El Loro de Flaubert","Julian Barnes","Inglaterra",1984,{"$nulls":12},1]
[31,"Homenaje A Cataluña","George Orwell","Inglaterra",1938,{"$nulls":12},1]
[32,"El Hombre Que Amaba A Los Perros","Leonardo Padura","Cuba",2009,{"$nulls":12},1,{"$nulls":5},1]
[33,"Sobre La Historia Natural De La Destrucción","W. G. Sebald","Alemania",1999,{"$nulls":12},1]
[34,"Obras","Jean Baudrillard","Francia",{"$nulls":14},1]
[35,"Espectros de Marx","Jacques Derrida","Francia",1993,{"$nulls":13},1]
[36,"Literatura salvadoreña del siglo XX: El jetón","Arturo Ambrogi","El Salvador",1936,{"$nulls":13},1]
[37,"Literatura salvadoreña del siglo XX: Barbasco","Ramón González Montalvo","El Salvador",1960,{"$nulls":13},1]
[38,"Literatura salvadoreña del siglo XX: Las tinajas","Ramón González Montalvo","El Salvador",1956,{"$nulls":13},1]
[39,"Rompeolas. Poesía reunida","Angelina Muñiz-Huberman","Francia/México",2012,{"$nulls":13},1]
[40,"La Noche Sexual","Pascal Quignard","Francia",2007,{"$nulls":13},1]
[41,"Una Misma Noche","Leopoldo Brizuela","Argentina",2012,null,1,{"$nulls":12},1]
[42,"Mi hermano llegó de otro planeta un día de mucho viento","Liza Porcelli","Argentina",2012,{"$nulls":14},1]
[43,"Teatro Contra El Olvido (Antología)","Laurietz Seda","Perú",2012,{"$nulls":14},1]
[44,"La Escritura De La/S Diferencia/S, 2012-2013",null,null,2013,{"$nulls":14},1]
[45,"Vuelo 7096","Salvador Canjura","El Salvador",2012,null,1,{"$nulls":12},1]
[46,"La Muerte Del Padre","Karl Ove Knausgård","Noruega",2009,{"$nulls":15},1]
[47,"Una Mujer En Berlín","Anónima","Alemania",1959,{"$nulls":15},1]
[48,"El Ruletista","Mircea Cărtărescu","Rumania",2010,{"$nulls":15},1]
[49,"Di Su Nombre","Francisco Goldman","Estados Unidos",2012,{"$nulls":15},1]
[50,"Flores Oscuras","Sergio Ramírez","Nicaragua",2013,null,null,1,1,1,1,{"$nulls":9},1,null,null,null,1]
[51,"Viaje Solar De Un Tren Hacia La Noche De Matachín","Javier Alvarado","Panamá",2013,{"$nulls":16},1]
[52,"El Ahogado","Tristán Solarte","Panamá",1962,{"$nulls":16},1]
[53,"Trópico De Cáncer","Henry Miller","Estados Unidos",1934,{"$nulls":16},1]
[54,"Causas Naturales","Claudia Hernández","El Salvador",2013,null,1,1,{"$nulls":13},1]
[55,"Los Poetas Del Mal","Manlio Argueta","El Salvador",2012,1,1,1,{"$nulls":13},1]
[56,"La Grieta","Doris Lessing","Inglaterra",2007,1,null,null,null,1,1,{"$nulls":11},1]
[57,"Mi Vida Querida","Alice Munro","Canadá",2012,null,null,null,1,1,{"$nulls":12},1,{"$nulls":9},1]
[58,"Rincón De Haikus","Mario Benedetti","Uruguay",1999,{"$nulls":4},1,{"$nulls":12},1]
[59,"El Canon Occidental","Harold Bloom","Estados Unidos",1994,{"$nulls":4},1,{"$nulls":12},1]
[60,"He Dicho, Antología Poética","Rafael Mendoza","El Salvador",2013,null,null,1,1,{"$nulls":13},1]
[61,"Violentología","Stephen Ferry","Estados Unidos",2011,{"$nulls":4},1,{"$nulls":13},1]
[62,"Las Armas De Ayer","Max Marambio","Chile",2002,{"$nulls":4},1,{"$nulls":13},1]
[63,"Todos Se Van","Wendy Guerra","Cuba",2006,{"$nulls":4},1,{"$nulls":13},1]
[64,"Lawrence In Arabia","Scott Anderson","Estados Unidos",2013,{"$nulls":4},1,1,{"$nulls":12},1]
[65,"Fear And Loathing In Las Vegas (Vintage)","Hunter S. Thompson","Estados Unidos",1971,{"$nulls":4},1,{"$nulls":14},1]
[66,"Un Asesino Solitario","Elmer Mendoza","México",1999,{"$nulls":4},1,{"$nulls":14},1]
[67,"The Collected Poems","Alfred A. Knopf - Wallace Stevens","Estados Unidos",2004,{"$nulls":4},1,{"$nulls":14},1]
[68,"Diary Of A Man In Despair","Friedrich Percyval Reck-Malleczewen","Alemania",1947,{"$nulls":4},1,1,{"$nulls":13},1]
[69,"Más Afuera","Jonathan Franzen","Estados Unidos",2012,{"$nulls":4},1,1,{"$nulls":14},1]
[70,"Jardín de Cemento","Ian McEwan.","Inglaterra",1978,{"$nulls":4},1,{"$nulls":15},1]
[71,"El Cielo Árido","Emiliano Monge","México",2012,{"$nulls":4},1,{"$nulls":15},1]
[72,"El Beso De La Liebre","Daniela Tarazona","México",2012,{"$nulls":4},1,1,{"$nulls":14},1]
[73,"El Espíritu De Mis Padres Sigue Subiendo Bajo La Lluvia","Patricio Pron ","Argentina",2011,1,null,null,null,1,{"$nulls":15},1]
[74,"Shadow","Suzy Lee","Estados Unidos",2010,{"$nulls":4},1,1,{"$nulls":15},1]
[75,"Dosis","Mayda Colón","Puerto Rico",2008,{"$nulls":4},1,{"$nulls":16},1]
[76,"Práctica del guión cinematográfico","Jean-Claude Carrière y Pascal Bonitzer","Francia",1991,{"$nulls":5},1,{"$nulls":15},1]
[77,"Religión y memoria cultural","Jan Assmann","Alemania",2008,{"$nulls":4},1,{"$nulls":16},1]
[78,"Disfiguring","Mark Taylor","Estados Unidos",1992,{"$nulls":4},1,{"$nulls":16},1]
[79,"Muestrario de familias ejemplares","Guillermo Barquero ","Costa Rica",2013,{"$nulls":22},1]
[80,"La jornada de la mona y el paciente","Mario Bellatin ","México",2006,{"$nulls":4},1,{"$nulls":17},1]
[81,"Como viven los muertos","Will Self","Inglaterra",2003,{"$nulls":4},1,{"$nulls":17},1]
[82,"Hombres enlodados ","Javier Stanziola","Panamá",2013,{"$nulls":4},1,{"$nulls":17},1]
[83,"Escenario de guerra","Andrea Jeftanovic","Chile",2000,{"$nulls":4},1,{"$nulls":17},1]
[84,"Ryder","Djuna Barnes","Estados Unidos",1928,{"$nulls":4},1,{"$nulls":18},1]
[85,"Louis XIV","Paulo de Jolly","Chile",1982,{"$nulls":5},1,{"$nulls":17},1]
[86,"La arquitectura histórica del poder. Naciones, nacionalismos y estados en América Latina. Siglos xviii, xix y xx.","Antonio Escobar Ohmstede, Romana Falcón Vega y Raymond Buve","México",2011,{"$nulls":5},1,{"$nulls":17},1]
[87,"El libro de la rosa","Guillaume de Lorris y Jean de Meun","Francia",2003,{"$nulls":4},1,{"$nulls":18},1]
[88,"Colores primarios, colección de poesía latinoamericana","Benjamín Morales","México",2011,{"$nulls":23},1]
[89,"Joseph Roth: A life in letters","Michael Hofmann","Austria",2012,{"$nulls":24},1]
[90,"Correspondencia","Thomas Bernhard, Siegfried Unself","Austria, Alemania",2012,{"$nulls":4},1,{"$nulls":19},1]
[91,"Limónov","Emmanuel Carrère","Francia",2011,{"$nulls":4},1,{"$nulls":19},1,1]
[92,"Diario de guerra (1914-1918)","Ernst Jünger ","Alemania",1918,{"$nulls":4},1,{"$nulls":19},1]
[93,"Informes de lectura/Cartas a Montale","Roberto Bazlen","Italia",{"$nulls":5},1,{"$nulls":19},1]
[94,"Zona","Geoff Dyer","Inglaterra",1958,{"$nulls":4},1,1,{"$nulls":19},1]
[95,"El coleccionista apasionado","Philip Blom","Alemania",1970,{"$nulls":4},1,1,{"$nulls":19},1]
[96,"Una historia sencilla","Leila Guerriero","Argentina",2013,{"$nulls":4},1,1,{"$nulls":19},1]
[97,"Drink time!","Dolores Payás","España",2013,{"$nulls":4},1,{"$nulls":20},1]
[98,"La vía real","André Malraux,","Francia",1930,{"$nulls":4},1,{"$nulls":21},1]
[99,"Los Cenci","Stendhal","Italia",1837,{"$nulls":4},1,1,{"$nulls":20},1]
[100,"El maleficio","Die Verzauberung","Austria",1958,{"$nulls":4},1,{"$nulls":21},1]
[101,"Costas extrañas","J.M.Coetzee","Sudáfrica",2011,{"$nulls":4},1,{"$nulls":21},1]
[102,"Enigma","Hugh Sebag-Montefiore","Inglaterra",2000,{"$nulls":4},1,{"$nulls":21},1]
[103,"Gabo, periodista","FNPI","Colombia",2013,{"$nulls":27},1]
[104,"Los corruptores","Jorge Zepeda Patterson","México",2013,{"$nulls":4},1,1,{"$nulls":21},1]
[105,"Memecracia: Los virales que nos gobiernan","Delia Rodriguez","España",2013,{"$nulls":4},1,{"$nulls":22},1]
[]
[]
[]
[]
[{"$nulls":5},{"$f":"SUM(F3:F110)","v":5},{"$f":"SUM(G3:G110)","v":5},{"$f":"SUM(H3:H110)","v":5},{"$f":"SUM(I3:I110)","v":4},{"$f":"SUM(J3:J110)","v":44},{"$f":"SUM(K3:K110)","v":15},{"$f":"SUM(L3:L110)","v":2},{"$f":"SUM(M3:M110)","v":5},{"$f":"SUM(N3:N110)","v":8},{"$f":"SUM(O3:O110)","v":5},{"$f":"SUM(P3:P110)","v":6},{"$f":"SUM(Q3:Q110)","v":5},{"$f":"SUM(R3:R110)","v":5},{"$f":"SUM(S3:S110)","v":7},{"$f":"SUM(T3:T110)","v":5},{"$f":"SUM(U3:U110)","v":5},{"$f":"SUM(V3:V110)","v":5},{"$f":"SUM(W3:W110)","v":5},{"$f":"SUM(X3:X110)","v":5},{"$f":"SUM(Y3:Y110)","v":5},{"$f":"SUM(Z3:Z110)","v":5},{"$f":"SUM(AA3:AA110)","v":5},{"$f":"SUM(AB3:AB110)","v":5},{"$f":"SUM(AC3:AC110)","v":5},{"$f":"SUM(AD3:AD110)","v":5},{"$f":"SUM(AE3:AE110)","v":5},{"$f":"SUM(AF3:AF110)","v":5},{"$f":"SUM(AG3:AG110)","v":5}]
[{"$nulls":6},"De venta en El Salvador:",null,{"$f":"SUM(F112:I112)","v":19}]